{"text_format":"3","workbook":"xlsx","n_sheets":1,"sheets":["Útnyilvántartás és költségel..."],"not_rendered":{"defined_names":6},"read":"whole","date_system":"1900"}

{"sheet":"Útnyilvántartás és költségel...","index":0,"n_rows":20,"n_cols":9,"rows_kept":20}
[null,"Útnyilvántartás és költségelszámolás"]
[]
[null,"Alkalmazott neve",null,"Díj kilométerenként",{"v":0.27,"d":"0.27 Ft"}]
[null,"Alkalmazotti azonosító",null,"Időszakra",{"$f":"\"Tól \"&TEXT(MIN(B9:B19),\"éé-hh-nn\")&\" ig \"&TEXT(MAX(B9:B19),\"éé-hh-nn\")","v":"Tól 17-08-02 ig 17-08-03"}]
[null,"Jármű leírása",null,"Távolság összesen",{"$f":"Távolság_összesen","v":10}]
[null,"Engedélyezte:",null,"Költségtérítés összesen",{"$f":"Költségtérítés_összesen","v":{"v":2.7,"d":"2.70 Ft"}}]
[]
[null,"Dátum","Kezdő helyszín","Célállomás","Leírás és jegyzetek","Kilométer-számláló kezdő állása","Kilométer-számláló záró állása","Távolság","Költségtérítés"]
[null,{"$f":"TODAY()","v":"2017-08-02"},"Otthoni munkavégzés","Northwind Traders","Ügyfélértekezlet",36098,36103,{"$f":"IFERROR(IF(OR(ISBLANK(F9),ISBLANK(G9)),0,G9-F9), \"\")","v":5},{"$f":"IFERROR(H9*$E$3, \"\")","v":{"v":1.35,"d":"1.35 Ft"}}]
[null,{"$f":"TODAY()+1","v":"2017-08-03"},"Northwind Traders","Otthoni munkavégzés","Ügyfélértekezlet",36103,36108,{"$f":"IFERROR(IF(OR(ISBLANK(F10),ISBLANK(G10)),0,G10-F10), \"\")","v":5},{"$f":"IFERROR(H10*$E$3, \"\")","v":{"v":1.35,"d":"1.35 Ft"}}]
[{"$nulls":7},0,{"v":0,"d":"0.00 Ft"}]
[{"$nulls":7},0,{"v":0,"d":"0.00 Ft"}]
[{"$nulls":7},0,{"v":0,"d":"0.00 Ft"}]
[{"$nulls":7},0,{"v":0,"d":"0.00 Ft"}]
[{"$nulls":7},0,{"v":0,"d":"0.00 Ft"}]
[{"$nulls":7},0,{"v":0,"d":"0.00 Ft"}]
[{"$nulls":7},0,{"v":0,"d":"0.00 Ft"}]
[{"$nulls":7},0,{"v":0,"d":"0.00 Ft"}]
[{"$nulls":7},0,{"v":0,"d":"0.00 Ft"}]
[{"$nulls":6},"Összesen",{"$f":"SUBTOTAL(109,Kiadás[Távolság])","v":10},{"$f":"SUBTOTAL(109,Kiadás[Költségtérítés])","v":{"v":2.7,"d":"2.70 Ft"}}]